fUST/lending_fUST_20240904
["ID","MTS","AMOUNT","RATE_DAILY","PERIOD"]
[337160439,1725463839199,-3465.90997086,0.00024224,2]
[337160440,1725463839209,-2863.29991035,0.00024324,2]
[337160441,1725463839221,-1727.45917131,0.00024324,2]
[337160442,1725463839232,-2863.29991033,0.00024326,2]
[337160443,1725463839243,-2863.29991033,0.00024329,2]
[337160444,1725463839252,-2863.29991033,0.00024331,2]
[337160445,1725463839262,-2863.29991033,0.00024333,2]
[337160446,1725463839272,-420.0,0.0002436,2]
[337160447,1725463839282,-150.112233,0.000244,5]
[337160448,1725463839292,-150.112233,0.000244,3]
[337160449,1725463839301,-150.112233,0.000244,2]
[337160450,1725463839312,-150.112233,0.000244,2]
[337160451,1725463839322,-150.112233,0.000244,2]
[337160452,1725463839332,-150.112233,0.000244,4]
[337160453,1725463839342,-150.112233,0.000244,5]
[337160454,1725463839352,-150.112233,0.000244,5]
[337160455,1725463839363,-150.112233,0.000244,2]
[337160456,1725463839373,-150.112233,0.000244,3]
[337160457,1725463839382,-2134.48,0.00024413,3]
[337160458,1725463839392,-360.40387943,0.00024422,2]
[337160459,1725463839403,-500.0,0.00024422,2]
[337160460,1725463839413,-500.0,0.00024422,2]
[337160461,1725463839422,-527.90728949,0.00024422,2]
[337160462,1725463839432,-500.0,0.00024422,2]
[337160463,1725463839442,-500.0,0.00024422,2]
[337160464,1725463839451,-500.0,0.00024422,2]
[337160465,1725463839460,-500.0,0.00024422,2]
[337160466,1725463839470,-500.0,0.00024422,2]
[337160467,1725463839480,-500.0,0.00024422,2]
[337160468,1725463839490,-500.0,0.00024422,2]
[337160469,1725463839499,-500.0,0.00024422,2]
[337160470,1725463839509,-500.0,0.00024422,2]
[337160471,1725463839518,-500.0,0.00024422,2]
[337160472,1725463839527,-500.0,0.00024422,2]
[337160473,1725463839537,-500.0,0.00024422,2]
[337160474,1725463839546,-500.0,0.00024422,2]
[337160475,1725463839555,-500.0,0.00024422,2]
[337160476,1725463839565,-500.0,0.00024422,2]
[337160477,1725463839574,-500.0,0.00024422,2]
[337160478,1725463839584,-500.0,0.00024422,2]
[337160479,1725463839593,-500.0,0.00024422,2]
[337160480,1725463839604,-500.0,0.00024422,2]
[337160481,1725463839613,-500.0,0.00024422,2]
[337160482,1725463839622,-500.0,0.00024422,2]
[337160483,1725463839631,-350.41476339,0.00024422,2]
[337160484,1725463839640,-500.0,0.00024422,2]
[337160485,1725463839650,-500.0,0.00024422,2]
[337160486,1725463839660,-500.0,0.00024422,2]
[337160487,1725463839670,-500.0,0.00024422,2]
[337160488,1725463839679,-500.0,0.00024422,2]
[337160489,1725463839688,-500.0,0.00024422,2]
[337160490,1725463839698,-500.0,0.00024422,2]
[337160491,1725463839708,-500.0,0.00024422,2]
[337160492,1725463839718,-500.0,0.00024422,2]
[337160493,1725463839727,-500.0,0.00024423,2]
[337160494,1725463839737,-382.97894375,0.00024423,2]
[337160495,1725463839747,-500.0,0.00024423,2]
[337160496,1725463839756,-292.85823528,0.00024423,2]
[337160497,1725463839767,-500.0,0.00024423,2]
[337160498,1725463839776,-621.25551287,0.00024423,2]
[337160499,1725463839786,-500.0,0.00024423,2]
[337160500,1725463839796,-500.0,0.00024423,2]
[337160501,1725463839806,-500.0,0.00024423,2]
[337160502,1725463839816,-500.0,0.00024423,2]
[337160503,1725463839826,-500.0,0.00024423,2]
[337160504,1725463839836,-211.92420958,0.00024423,2]
[337160505,1725463839846,-500.0,0.00024423,2]
[337160506,1725463839855,-179.81854735,0.00024423,2]
[337160507,1725463839866,-500.0,0.00024423,2]
[337160508,1725463839876,-500.0,0.00024423,2]
[337160509,1725463839886,-616090.522699,0.00024424,3]
[337160510,1725463839898,-585813.905472,0.00024424,2]
[337160511,1725463839910,-110375.41172016,0.00024444,12]
[337160512,1725463839921,-310.18713937,0.00024473,2]
[337160513,1725463839932,-500.94504749,0.00024473,2]
[337160514,1725463839942,-156.8571277,0.00024473,2]
[337160515,1725463839953,-500.0,0.00024473,2]
[337160516,1725463839963,-500.0,0.00024473,2]
[337160517,1725463839975,-319.411054,0.00024473,2]
[337160518,1725463839987,-158.57494327,0.00024473,2]
[337160519,1725463840001,-200.15807288,0.00024473,2]
[337160520,1725463840010,-158.63181578,0.00024473,2]
[337160521,1725463840021,-343.36791284,0.00024473,2]
[337160522,1725463840031,-501.00052669,0.00024473,2]
[337160523,1725463840042,-500.0,0.00024473,2]
[337160524,1725463840052,-158.63137592,0.00024473,2]
[337160525,1725463840063,-500.0,0.00024473,2]
[337160526,1725463840073,-500.0,0.00024473,2]
[337160527,1725463840083,-160.18904169,0.00024473,2]
[337160528,1725463840092,-500.0,0.00024473,2]
[337160529,1725463840102,-571.24,0.000245,14]
[337160530,1725463840112,-405.78,0.000245,14]
[337160531,1725463840122,-5559.70314496,0.00024507,2]
[337160532,1725463840132,-469.27319618,0.00024648,2]
[337160533,1725463840142,-712.588204,0.00024658,2]
[337160534,1725463840152,-380.0,0.00024658,2]
[337160535,1725463840162,-500.0,0.00024658,2]
[337160536,1725463840171,-500.0,0.00024658,2]
[337160538,1725463840181,-613.8177846,0.00024658,2]
[337160540,1725463840191,-500.0,0.00024658,2]
[337160542,1725463840201,-500.0,0.00024658,2]
[337160543,1725463840212,-500.0,0.00024658,2]
[337160544,1725463840222,-500.0,0.00024658,2]
[337160545,1725463840232,-500.0,0.00024658,2]
[337160546,1725463840242,-500.0,0.00024658,2]
[337160547,1725463840253,-500.0,0.00024658,2]
[337160549,1725463840263,-500.0,0.00024658,2]
[337160550,1725463840273,-500.0,0.00024658,2]
[337160551,1725463840283,-500.0,0.00024658,2]
[337160552,1725463840294,-500.0,0.00024658,2]
[337160553,1725463840305,-500.0,0.00024658,2]
[337160554,1725463840316,-500.0,0.00024658,2]
[337160555,1725463840327,-500.0,0.00024658,2]
[337160556,1725463840337,-500.0,0.00024658,2]
[337160557,1725463840347,-500.0,0.00024658,2]
[337160558,1725463840357,-500.0,0.00024658,2]
[337160559,1725463840367,-500.0,0.00024658,2]
[337160560,1725463840378,-500.0,0.00024658,2]
[337160561,1725463840388,-500.0,0.00024658,2]
[337160562,1725463840399,-500.0,0.00024658,2]
[337160563,1725463840411,-500.0,0.00024658,2]
[337160564,1725463840422,-500.0,0.00024658,2]
[337160565,1725463840432,-500.0,0.00024658,2]
[337160566,1725463840442,-500.0,0.00024658,2]
[337160567,1725463840452,-500.0,0.00024658,2]
[337160568,1725463840462,-500.0,0.00024658,2]
[337160569,1725463840472,-500.0,0.00024658,2]
[337160570,1725463840482,-500.0,0.00024658,2]
[337160571,1725463840492,-500.0,0.00024658,2]
[337160572,1725463840502,-500.0,0.00024658,2]
[337160573,1725463840511,-500.0,0.00024658,2]
[337160574,1725463840521,-500.0,0.00024658,2]
[337160575,1725463840531,-500.0,0.00024658,2]
[337160576,1725463840542,-500.0,0.00024658,2]
[337160577,1725463840552,-500.0,0.00024658,2]
[337160578,1725463840563,-500.0,0.00024658,2]
[337160579,1725463840573,-500.0,0.00024658,2]
[337160580,1725463840583,-500.0,0.00024658,2]
[337160581,1725463840594,-500.0,0.00024658,2]
[337160582,1725463840605,-202.29294971,0.00024658,2]
[337160583,1725463840614,-500.0,0.00024658,2]
[337160584,1725463840624,-500.0,0.00024658,2]
[337160585,1725463840634,-500.0,0.00024658,2]
[337160586,1725463840643,-500.0,0.00024658,2]
[337160587,1725463840653,-500.0,0.00024658,2]
[337160588,1725463840666,-500.0,0.00024658,2]
[337160589,1725463840675,-500.0,0.00024658,2]
[337160590,1725463840685,-500.0,0.00024658,2]
[337160591,1725463840695,-134574.29,0.000247,14]
[337160592,1725463840704,-844.19028642,0.00024898,2]
[337160593,1725463840714,-1029.92728206,0.000249,2]
[337160594,1725463840724,-5559.70314496,0.0002493,2]
[337160595,1725463840733,-202.98794253,0.00024973,2]
[337160596,1725463840743,-500.0,0.00024973,2]
[337160597,1725463840753,-500.0,0.00024973,2]
[337160598,1725463840763,-500.0,0.00024973,2]
[337160599,1725463840773,-501.84631074,0.00024973,2]
[337160600,1725463840783,-255.0334715,0.00024973,2]
[337160601,1725463840792,-190.70392364,0.00024973,2]
[337160602,1725463840802,-3346.57422004,0.00025,7]
[337160603,1725463840811,-1000.0,0.00025,5]
[337160604,1725463840821,-248670.85572058,0.00025,2]
[337160605,1725463840835,-239942.80177226,0.00025,2]
[337160606,1725463840844,-3339.48148332,0.00025,7]
[337160607,1725463840853,-13725.26278465,0.00025,10]
[337160608,1725463840863,-19499.65194415,0.00025,2]
[337160609,1725463840873,-10364.0,0.00025,2]
[337160610,1725463840882,-151.0,0.00025,7]
[337160611,1725463840892,-232.713779,0.00025,7]
[337160612,1725463840902,-151.0,0.00025,2]
[337160613,1725463840915,-3211.730987,0.00025,7]
[337160614,1725463840925,-151.0,0.00025,7]
[337160615,1725463840934,-3211.730987,0.00025,7]
[337160616,1725463840944,-201.21275536,0.00025021,2]
[337160617,1725463840955,-1000.0,0.00025021,2]
[337160618,1725463840964,-1000.0,0.00025021,2]
[337160619,1725463840974,-1000.0,0.00025021,2]
[337160620,1725463840984,-1000.0,0.00025021,2]
[337160621,1725463840997,-284.86025039,0.00025021,2]
[337160622,1725463841009,-1541.3871335,0.0002509,2]
[337160623,1725463841019,-5559.70314496,0.00025111,2]
[337160624,1725463841031,-150.112233,0.000252,7]
[337160625,1725463841040,-1727.45917125,0.00025263,2]
[337160626,1725463841050,-166.941125,0.00025265,2]
[337160627,1725463841061,-3465.90997086,0.00025281,2]
[337160628,1725463841071,-150.112233,0.000254,9]
[337160629,1725463841081,-5559.70314496,0.000254,2]
[337160630,1725463841090,-150.112233,0.000255,6]
[337160631,1725463841100,-151.0,0.00025515,7]
[337160632,1725463841110,-2097.479294,0.00025515,7]
[337160633,1725463841120,-2097.479294,0.00025515,7]
[337160634,1725463841130,-151.0,0.00025515,7]
[337160635,1725463841140,-151.0,0.00025515,7]
[337160636,1725463841149,-1000.0,0.00025521,2]
[337160637,1725463841160,-618.62345339,0.00025521,2]
[337160638,1725463841170,-5559.70314496,0.00025643,2]
[337160639,1725463841180,-150.112233,0.000257,9]
[337160640,1725463841190,-250.0,0.0002573,2]
[337160641,1725463841200,-4268.96,0.00025783,3]
[337160642,1725463841210,-150.112233,0.000258,5]
[337160643,1725463841219,-250.0,0.00025801,2]
[337160644,1725463841229,-250.0,0.00025871,2]
[337160645,1725463841239,-465.21365981,0.0002588,2]
[337160646,1725463841249,-1500.0,0.00025919,2]
[337160647,1725463841258,-1500.0,0.00025919,2]
[337160648,1725463841268,-965.47878467,0.00025919,2]
[337160649,1725463841278,-250.0,0.00025942,2]
[337160650,1725463841287,-5559.70314496,0.00025968,2]
[337160651,1725463841297,-150.112233,0.00026,10]
[337160652,1725463841307,-250.0,0.00026013,2]
[337160653,1725463841317,-2799.40061605,0.0002606,2]
[337160654,1725463841326,-250.0,0.00026083,2]
[337160655,1725463841339,-150.112233,0.000261,7]
[337160656,1725463841349,-250.0,0.00026154,2]
[337160657,1725463841359,-1727.45917125,0.00026202,2]
[337160658,1725463841368,-250.0,0.00026224,2]
[337160659,1725463841378,-5559.70314496,0.00026243,2]
[337160660,1725463841388,-250.0,0.00026295,2]
[337160661,1725463841399,-150.112233,0.000263,8]
[337160662,1725463841410,-3465.90997086,0.00026339,2]
[337160663,1725463841420,-250.0,0.00026365,2]
[337160664,1725463841430,-150.112233,0.000264,5]
[337160665,1725463841575,-5559.70314496,0.00026411,2]
[337160666,1725463841586,-1500.0,0.00026419,2]
[337160667,1725463841597,-250.0,0.00026436,2]
[337160668,1725463841606,-46139.39749879,0.00026445,2]
[337160669,1725463841616,-151.0,0.00026445,7]
[337160670,1725463841626,-151.0,0.00026445,7]
[337160671,1725463841636,-151.0,0.00026445,7]
[337160672,1725463841645,-151.0,0.00026445,7]
[337160673,1725463841657,-2408.464307,0.00026445,7]
[337160674,1725463841666,-2408.464307,0.00026445,7]
[337160675,1725463841675,-2274.307317,0.00026445,7]
[337160676,1725463841684,-2274.307317,0.00026445,7]
[337160677,1725463841694,-151.0,0.00026445,7]
[337160678,1725463841704,-151.0,0.00026445,7]
[337160679,1725463841714,-171.260967,0.00026445,7]
[337160680,1725463841722,-54317.45431394,0.00026455,2]
[337160681,1725463841732,-2585.2375981,0.00026455,2]
[337160682,1725463841741,-2223.00164634,0.00026455,2]
[337160683,1725463841751,-509591.91587708,0.00026455,2]
[337160684,1725463841760,-152.943172,0.00026455,7]
[337160685,1725463841769,-151.0,0.00026455,7]
[337160686,1725463841778,-156.369484,0.00026455,7]
[337160687,1725463841787,-151.0,0.00026455,7]
[337160688,1725463841796,-151.0,0.00026455,7]
[337160689,1725463841805,-151.0,0.00026455,7]
[337160690,1725463841814,-151.0,0.00026455,7]
[337160691,1725463841823,-151.0,0.00026455,7]
[337160692,1725463841833,-151.0,0.00026455,7]
[337160693,1725463841842,-151.0,0.00026455,7]
[337160694,1725463841851,-252.904328,0.00026455,7]
[337160695,1725463841860,-2097.479294,0.00026455,7]
[337160696,1725463841870,-2097.479294,0.00026455,7]
[337160697,1725463841880,-151.0,0.00026455,7]
[337160698,1725463841889,-276.458965,0.00026455,7]
[337160699,1725463841898,-151.0,0.00026455,7]
[337160700,1725463841910,-2408.464307,0.00026455,7]
[337160701,1725463841919,-2408.464307,0.00026455,7]
[337160702,1725463841928,-2274.307317,0.00026455,7]
[337160703,1725463841938,-2274.307317,0.00026455,7]
[337160704,1725463841947,-151.0,0.00026455,7]
[337160705,1725463841956,-151.0,0.00026455,7]
[337160706,1725463841964,-151.0,0.00026455,7]
[337160707,1725463841974,-151.0,0.00026455,7]
[337160708,1725463841983,-151.0,0.00026455,2]
[337160709,1725463841993,-151.0,0.00026455,2]
[337160710,1725463842005,-3211.730987,0.00026455,7]
[337160711,1725463842014,-3211.730987,0.00026455,7]
[337160712,1725463842024,-211.885143,0.00026455,7]
[337160713,1725463842033,-3211.730987,0.00026455,7]
[337160714,1725463842043,-3211.730987,0.00026455,7]
[337160715,1725463842052,-285.0,0.0002646,2]
[337160716,1725463842062,-530.72255491,0.00026473,2]
[337160717,1725463842072,-500.0,0.00026473,2]
[337160718,1725463842081,-500.0,0.00026473,2]
[337160719,1725463842091,-405.78,0.000265,14]
[337160720,1725463842100,-250.0,0.00026507,2]
[337160721,1725463842109,-600.0,0.00026575,13]
[337160722,1725463842118,-250.0,0.00026577,2]
[337160723,1725463842128,-150.112233,0.000266,9]
[337160724,1725463842138,-55555.0,0.000266,3]
[337160725,1725463842147,-250.0,0.00026648,2]
[337160726,1725463842159,-6870.17630797,0.0002669,2]
[337160727,1725463842170,-595.54,0.000267,7]
[337160728,1725463842179,-1000.0,0.00026709,7]
[337160729,1725463842189,-74503.21098425,0.0002671,2]
[337160730,1725463842198,-250.0,0.00026718,2]
[337160731,1725463842208,-211200.87843474,0.00026722,2]
[337160732,1725463842218,-47802.44265288,0.00026722,2]
[337160733,1725463842227,-151.0,0.00026722,7]
[337160734,1725463842237,-170.507214,0.00026722,7]
[337160735,1725463842247,-151.0,0.00026722,7]
[337160736,1725463842256,-151.0,0.00026722,7]
[337160737,1725463842266,-151.0,0.00026722,7]
[337160738,1725463842275,-151.0,0.00026722,7]
[337160739,1725463842283,-151.0,0.00026722,7]
[337160740,1725463842293,-151.0,0.00026722,7]
[337160741,1725463842302,-151.0,0.00026722,7]
[337160742,1725463842311,-151.0,0.00026722,7]
[337160743,1725463842321,-151.0,0.00026722,7]
[337160744,1725463842330,-2097.479294,0.00026722,7]
[337160745,1725463842339,-2097.479294,0.00026722,7]
[337160746,1725463842348,-151.0,0.00026722,7]
[337160747,1725463842357,-151.0,0.00026722,7]
[337160748,1725463842367,-2408.464307,0.00026722,7]
[337160749,1725463842376,-2408.464307,0.00026722,7]
[337160750,1725463842386,-2274.307317,0.00026722,7]
[337160751,1725463842395,-2274.307317,0.00026722,7]
[337160752,1725463842405,-151.0,0.00026722,7]
[337160753,1725463842417,-151.0,0.00026722,7]
[337160754,1725463842426,-151.0,0.00026722,7]
[337160755,1725463842436,-151.0,0.00026722,2]
[337160756,1725463842445,-3211.730987,0.00026722,7]
[337160757,1725463842455,-3211.730987,0.00026722,7]
[337160758,1725463842465,-5559.70314496,0.00026742,2]
[337160759,1725463842475,-500.0,0.00026773,2]
[337160760,1725463842485,-250.0,0.00026789,2]
[337160761,1725463842495,-571.24,0.000268,14]
[337160762,1725463842504,-134574.29,0.000268,14]
[337160763,1725463842513,-600.0,0.00026841,14]
[337160764,1725463842522,-250.0,0.00026859,2]
[337160765,1725463842532,-609.76796945,0.00026865,10]
[337160766,1725463842542,-250.0,0.0002693,2]
[337160767,1725463842552,-6000.0,0.00027,14]
[337160768,1725463842562,-6000.0,0.00027,14]
[337160769,1725463842571,-6000.0,0.00027,14]
[337160770,1725463842581,-6000.0,0.00027,14]
[337160771,1725463842590,-8203.0,0.00027,14]
[337160772,1725463842600,-250.0,0.00027001,2]
[337160773,1725463842610,-501.36411391,0.00027021,2]
[337160774,1725463842621,-1000.0,0.00027021,2]
[337160775,1725463842631,-151.0,0.00027021,7]
[337160776,1725463842640,-2408.464307,0.00027021,7]
[337160777,1725463842651,-2408.464307,0.00027021,7]
[337160778,1725463842662,-2274.307317,0.00027021,7]
[337160779,1725463842672,-2274.307317,0.00027021,7]
[337160780,1725463842681,-151.0,0.00027021,7]
[337160781,1725463842691,-151.0,0.00027021,7]
[337160782,1725463842701,-151.0,0.00027021,2]
[337160783,1725463842711,-3211.730987,0.00027021,7]
[337160784,1725463842721,-3211.730987,0.00027021,7]
[337160785,1725463842731,-1503.00748603,0.00027024,2]
[337160786,1725463842740,-1000.0,0.00027024,2]
[337160787,1725463842750,-5559.70314496,0.00027068,2]
[337160788,1725463842760,-250.0,0.00027071,2]
[337160789,1725463842770,-268012.67277357,0.0002709,2]
[337160790,1725463842779,-151.0,0.0002709,7]
[337160791,1725463842789,-247.027118,0.0002709,2]
[337160792,1725463842798,-3211.730987,0.0002709,7]
[337160793,1725463842808,-3211.730987,0.0002709,7]
[337160794,1725463842817,-1727.45917125,0.00027141,2]
[337160795,1725463842826,-5559.70314504,0.00027154,2]
[337160796,1725463842836,-465.01068299,0.00027174,2]
[337160797,1725463842846,-30000.0,0.0002724,2]
[337160798,1725463842856,-2097.479294,0.0002724,7]
[337160799,1725463842865,-2097.479294,0.0002724,7]
[337160800,1725463842875,-151.0,0.0002724,7]
[337160801,1725463842885,-448.42442974,0.0002725,120]
[337160802,1725463842895,-243.6805,0.0002726,2]
[337160803,1725463842904,-150.0,0.00027285,2]
[337160804,1725463842917,-3000.0,0.00027297,2]
[337160805,1725463842929,-151.0,0.000273,2]
[337160806,1725463842940,-1679.523192,0.000273,2]
[337160807,1725463842951,-500.0,0.00027321,2]
[337160808,1725463842960,-5456.56668596,0.0002735,60]
[337160809,1725463842970,-155.0,0.0002735,17]
[337160810,1725463842979,-395.81960957,0.00027396,2]
[337160811,1725463842989,-12018.46039756,0.00027396,2]
[337160812,1725463843002,-3465.90997086,0.00027396,2]
[337160813,1725463843011,-479.37668687,0.00027397,2]
[337160814,1725463843020,-500.0,0.00027397,2]
[337160815,1725463843031,-500.0,0.00027397,2]
[337160816,1725463843040,-500.0,0.00027397,2]
[337160817,1725463843051,-500.0,0.00027397,2]
[337160818,1725463843061,-500.0,0.00027397,2]
[337160819,1725463843071,-500.0,0.00027397,2]
[337160820,1725463843082,-500.0,0.00027397,2]
[337160821,1725463843092,-500.0,0.00027397,2]
[337160822,1725463843102,-500.0,0.00027397,2]
[337160823,1725463843113,-500.0,0.00027397,2]
[337160824,1725463843124,-482.89578546,0.00027397,2]
[337160825,1725463843135,-500.0,0.00027397,2]
[337160827,1725463843148,-500.0,0.00027397,2]
[337160829,1725463843160,-518.33785842,0.00027397,2]
[337160830,1725463843169,-500.0,0.00027397,2]
[337160831,1725463843178,-500.0,0.00027397,2]
[337160832,1725463843187,-500.0,0.00027397,2]
[337160833,1725463843196,-276.23645631,0.00027397,2]
[337160834,1725463843206,-500.0,0.00027397,2]
[337160835,1725463843216,-500.0,0.00027397,2]
[337160836,1725463843225,-500.0,0.00027397,2]
[337160837,1725463843235,-500.0,0.00027397,2]
[337160838,1725463843244,-500.0,0.00027397,2]
[337160839,1725463843253,-500.0,0.00027397,2]
[337160841,1725463843263,-502.90360956,0.00027397,2]
[337160842,1725463843273,-500.0,0.00027397,2]
[337160843,1725463843282,-500.0,0.00027397,2]
[337160844,1725463843291,-500.0,0.00027397,2]
[337160845,1725463843301,-500.0,0.00027397,2]
[337160846,1725463843310,-500.0,0.00027397,2]
[337160847,1725463843321,-500.0,0.00027397,2]
[337160848,1725463843331,-558.3,0.00027397,2]
[337160849,1725463843341,-500.0,0.00027397,2]
[337160851,1725463843350,-500.0,0.00027397,2]
[337160853,1725463843360,-500.0,0.00027397,2]
[337160854,1725463843369,-500.0,0.00027397,2]
[337160856,1725463843379,-500.0,0.00027397,2]
[337160858,1725463843388,-500.0,0.00027397,2]
[337160861,1725463843398,-500.0,0.00027397,2]
[337160863,1725463843410,-573.69,0.00027397,2]
[337160864,1725463843420,-500.0,0.00027397,2]
[337160866,1725463843429,-500.0,0.00027397,2]
[337160867,1725463843438,-500.0,0.00027397,2]
[337160868,1725463843449,-500.0,0.00027397,2]
[337160870,1725463843458,-500.0,0.00027397,2]
[337160872,1725463843466,-500.0,0.00027397,2]
[337160874,1725463843476,-500.0,0.00027397,2]
[337160876,1725463843485,-616.45,0.00027397,2]
[337160878,1725463843495,-500.0,0.00027397,2]
[337160879,1725463843504,-354.88,0.00027397,2]
[337160881,1725463843514,-500.0,0.00027397,2]
[337160883,1725463843523,-537.61,0.00027397,2]
[337160885,1725463843533,-500.0,0.00027397,2]
[337160886,1725463843542,-517.71,0.00027397,2]
[337160887,1725463843552,-500.0,0.00027397,2]
[337160888,1725463843561,-500.0,0.00027397,2]
[337160889,1725463843571,-500.0,0.00027397,2]
[337160890,1725463843580,-500.0,0.00027397,2]
[337160891,1725463843589,-500.0,0.00027397,2]
[337160892,1725463843598,-500.0,0.00027397,2]
[337160893,1725463843608,-500.0,0.00027397,2]
[337160894,1725463843617,-534.88,0.00027397,2]
[337160895,1725463843626,-500.0,0.00027397,2]
[337160896,1725463843636,-500.0,0.00027397,2]
[337160897,1725463843646,-500.0,0.00027397,2]
[337160898,1725463843656,-500.0,0.00027397,2]
[337160899,1725463843668,-500.0,0.00027397,2]
[337160900,1725463843677,-500.0,0.00027397,2]
[337160901,1725463843686,-500.0,0.00027397,2]
[337160902,1725463843695,-487.83463648,0.00027397,2]
[337160903,1725463843703,-525.6,0.00027397,2]
[337160904,1725463843712,-500.0,0.00027397,2]
[337160905,1725463843722,-500.0,0.00027397,2]
[337160906,1725463843731,-500.0,0.00027397,2]
[337160907,1725463843740,-500.0,0.00027397,2]
[337160908,1725463843749,-500.0,0.00027397,2]
[337160909,1725463843759,-605.57,0.00027397,2]
[337160910,1725463843769,-510.80161654,0.00027397,2]
[337160911,1725463843778,-500.0,0.00027397,2]
[337160912,1725463843788,-548.23,0.00027397,2]
[337160913,1725463843797,-500.0,0.00027397,2]
[337160914,1725463843806,-500.0,0.00027397,2]
[337160915,1725463843816,-500.0,0.00027397,2]
[337160916,1725463843825,-500.0,0.00027397,2]
[337160917,1725463843834,-500.0,0.00027397,2]
[337160918,1725463843843,-500.0,0.00027397,2]
[337160919,1725463843853,-737.44,0.00027397,2]
[337160920,1725463843862,-500.0,0.00027397,2]
[337160921,1725463843871,-500.0,0.00027397,2]
[337160922,1725463843883,-743.7,0.00027397,2]
[337160923,1725463843893,-516.94,0.00027397,2]
[337160924,1725463843902,-500.0,0.00027397,2]
[337160925,1725463843913,-611.26974093,0.00027397,2]
[337160926,1725463844051,-500.0,0.00027397,2]
[337160927,1725463844061,-500.0,0.00027397,2]
[337160928,1725463844072,-500.0,0.00027397,2]
[337160929,1725463844082,-500.0,0.00027397,2]
[337160930,1725463844091,-500.0,0.00027397,2]
[337160931,1725463844100,-303.8127338,0.00027397,2]
[337160932,1725463844110,-500.0,0.00027397,2]
[337160933,1725463844119,-500.0,0.00027397,2]
[337160934,1725463844128,-500.0,0.00027397,2]
[337160935,1725463844138,-500.0,0.00027397,2]
[337160936,1725463844147,-500.0,0.00027397,2]
[337160937,1725463844157,-500.0,0.00027397,2]
[337160938,1725463844167,-500.0,0.00027397,2]
[337160939,1725463844176,-306.24031292,0.00027397,2]
[337160940,1725463844186,-500.0,0.00027397,2]
[337160941,1725463844198,-500.0,0.00027397,2]
[337160942,1725463844208,-500.0,0.00027397,2]
[337160943,1725463844220,-500.0,0.00027397,2]
[337160944,1725463844230,-500.0,0.00027397,2]
[337160945,1725463844242,-500.0,0.00027397,2]
[337160946,1725463844252,-500.0,0.00027397,2]
[337160947,1725463844262,-500.0,0.00027397,2]
[337160948,1725463844271,-500.0,0.00027397,2]
[337160949,1725463844280,-500.0,0.00027397,2]
[337160950,1725463844291,-500.0,0.00027397,2]
[337160951,1725463844300,-500.0,0.00027397,2]
[337160952,1725463844310,-500.0,0.00027397,2]
[337160953,1725463844319,-500.0,0.00027397,2]
[337160954,1725463844328,-514.76,0.00027397,2]
[337160955,1725463844337,-500.0,0.00027397,2]
[337160956,1725463844346,-746.37,0.00027397,2]
[337160957,1725463844356,-500.0,0.00027397,2]
[337160958,1725463844366,-500.0,0.00027397,2]
[337160959,1725463844376,-500.0,0.00027397,2]
[337160960,1725463844386,-500.0,0.00027397,2]
[337160961,1725463844395,-500.0,0.00027397,2]